[Event "Live Chess"]
[Site "Chess.com"]
[Date "2024.06.01"]
[Round "-"]
[White "Demyan7777"]
[Black "GEMdzq"]
[Result "1-0"]
[WhiteElo "1754"]
[BlackElo "2265"]
[TimeControl "300"]
[EndTime "12:07:24 PDT"]
[Termination "Demyan7777 won by checkmate"]

1. e4 {[%clk 0:04:57.4]} 1... Nf6 {[%clk 0:04:57.8]} 2. Nc3 {[%clk 0:04:55]}
2... d6 {[%clk 0:04:54]} 3. d4 {[%clk 0:04:53.6]} 3... g6 {[%clk 0:04:53.7]} 4.
f4 {[%clk 0:04:52]} 4... Bg7 {[%clk 0:04:53]} 5. Nf3 {[%clk 0:04:50.6]} 5... O-O
{[%clk 0:04:51.5]} 6. h3 {[%clk 0:04:47.3]} 6... Na6 {[%clk 0:04:51]} 7. Be3
{[%clk 0:04:45.4]} 7... c5 {[%clk 0:04:49.5]} 8. e5 {[%clk 0:04:44.3]} 8... Nd7
{[%clk 0:04:43.5]} 9. exd6 {[%clk 0:04:42]} 9... exd6 {[%clk 0:04:42.9]} 10.
dxc5 {[%clk 0:04:41]} 10... Re8 {[%clk 0:04:40.6]} 11. Qd2 {[%clk 0:04:35.7]}
11... Ndxc5 {[%clk 0:04:26.5]} 12. Bc4 {[%clk 0:03:53.7]} 12... Nb4 {[%clk
0:04:04.5]} 13. O-O-O {[%clk 0:03:30.8]} 13... Be6 {[%clk 0:03:29.2]} 14. Bxe6
{[%clk 0:03:18.7]} 14... Nxe6 {[%clk 0:03:24]} 15. Kb1 {[%clk 0:02:50.2]} 15...
Rc8 {[%clk 0:03:11.5]} 16. Nd4 {[%clk 0:02:22.5]} 16... Nc5 {[%clk 0:02:49.1]}
17. a3 {[%clk 0:02:15.8]} 17... Nc6 {[%clk 0:02:25.1]} 18. Nxc6 {[%clk
0:02:11.6]} 18... Rxc6 {[%clk 0:02:25]} 19. Bxc5 {[%clk 0:02:09.9]} 19... Rxc5
{[%clk 0:02:24.4]} 20. Qxd6 {[%clk 0:02:00.6]} 20... Qxd6 {[%clk 0:02:20.2]} 21.
Rxd6 {[%clk 0:01:58.1]} 21... Bxc3 {[%clk 0:02:19.1]} 22. bxc3 {[%clk
0:01:55.9]} 22... Re7 {[%clk 0:02:16.6]} 23. Kb2 {[%clk 0:01:50.6]} 23... Kg7
{[%clk 0:02:14.2]} 24. Rhd1 {[%clk 0:01:48.5]} 24... Rc4 {[%clk 0:02:12.9]} 25.
R6d4 {[%clk 0:01:44.1]} 25... Rcc7 {[%clk 0:02:09.7]} 26. c4 {[%clk 0:01:38.4]}
26... h5 {[%clk 0:02:08.5]} 27. Kb3 {[%clk 0:01:36.1]} 27... h4 {[%clk
0:02:07.1]} 28. R1d2 {[%clk 0:01:32.7]} 28... Re3+ {[%clk 0:02:05.7]} 29. c3
{[%clk 0:01:31.2]} 29... Kf6 {[%clk 0:02:01]} 30. Kb4 {[%clk 0:01:17.6]} 30...
Re6 {[%clk 0:01:52.4]} 31. c5 {[%clk 0:01:12.8]} 31... b6 {[%clk 0:01:42.4]} 32.
Rd5 {[%clk 0:01:06.9]} 32... bxc5+ {[%clk 0:01:32.5]} 33. Rxc5 {[%clk
0:01:05.8]} 33... Rb6+ {[%clk 0:01:31.6]} 34. Kc4 {[%clk 0:01:04.7]} 34... Rbc6
{[%clk 0:01:23]} 35. Rxc6+ {[%clk 0:01:03.1]} 35... Rxc6+ {[%clk 0:01:22.9]} 36.
Kb4 {[%clk 0:00:59.1]} 36... Ke6 {[%clk 0:01:11.5]} 37. c4 {[%clk 0:00:57]}
37... Rb6+ {[%clk 0:00:58.8]} 38. Kc3 {[%clk 0:00:53.8]} 38... Rb7 {[%clk
0:00:51.9]} 39. Rd4 {[%clk 0:00:52.1]} 39... f6 {[%clk 0:00:50]} 40. f5+ {[%clk
0:00:50.2]} 40... Kxf5 {[%clk 0:00:47.8]} 41. Rxh4 {[%clk 0:00:49.9]} 41... g5
{[%clk 0:00:46.2]} 42. Rd4 {[%clk 0:00:49.1]} 42... Ke5 {[%clk 0:00:45.5]} 43.
g4 {[%clk 0:00:46.6]} 43... Rh7 {[%clk 0:00:43.6]} 44. Rd3 {[%clk 0:00:45.7]}
44... Ke4 {[%clk 0:00:42.4]} 45. a4 {[%clk 0:00:37]} 45... a5 {[%clk 0:00:40.7]}
46. c5 {[%clk 0:00:32.2]} 46... Rc7 {[%clk 0:00:38.9]} 47. Kc4 {[%clk
0:00:31.1]} 47... f5 {[%clk 0:00:31.3]} 48. gxf5 {[%clk 0:00:29.7]} 48... Kxf5
{[%clk 0:00:31]} 49. Kb5 {[%clk 0:00:24.8]} 49... Ke6 {[%clk 0:00:26.6]} 50. c6
{[%clk 0:00:23.8]} 50... Ke5 {[%clk 0:00:20.1]} 51. Kb6 {[%clk 0:00:23.2]} 51...
Rh7 {[%clk 0:00:19]} 52. c7 {[%clk 0:00:22.6]} 52... Rh8 {[%clk 0:00:17.7]} 53.
Kb7 {[%clk 0:00:22]} 53... Ke4 {[%clk 0:00:17.6]} 54. Rd8 {[%clk 0:00:20.9]}
54... Rh7 {[%clk 0:00:16.4]} 55. Kb6 {[%clk 0:00:19.9]} 55... Rh6+ {[%clk
0:00:15.4]} 56. Kxa5 {[%clk 0:00:18.1]} 56... Rc6 {[%clk 0:00:14.4]} 57. c8=Q
{[%clk 0:00:17.3]} 57... Rxc8 {[%clk 0:00:13.6]} 58. Rxc8 {[%clk 0:00:17]} 58...
Kf4 {[%clk 0:00:13.3]} 59. Rc3 {[%clk 0:00:16.2]} 59... g4 {[%clk 0:00:12]} 60.
Kb5 {[%clk 0:00:15.9]} 60... g3 {[%clk 0:00:11]} 61. Rxg3 {[%clk 0:00:15.2]}
61... Kxg3 {[%clk 0:00:10.9]} 62. a5 {[%clk 0:00:14.8]} 62... Kxh3 {[%clk
0:00:10.7]} 63. a6 {[%clk 0:00:14.4]} 63... Kg4 {[%clk 0:00:10.6]} 64. a7 {[%clk
0:00:14.1]} 64... Kf3 {[%clk 0:00:10.5]} 65. a8=Q+ {[%clk 0:00:13.7]} 65... Ke3
{[%clk 0:00:09.7]} 66. Qd5 {[%clk 0:00:13.4]} 66... Kf4 {[%clk 0:00:08.6]} 67.
Qh5 {[%clk 0:00:13.2]} 67... Ke3 {[%clk 0:00:07.8]} 68. Qh4 {[%clk 0:00:12.7]}
68... Kd3 {[%clk 0:00:07]} 69. Qg4 {[%clk 0:00:12.2]} 69... Ke3 {[%clk
0:00:06.9]} 70. Kc5 {[%clk 0:00:10.3]} 70... Kd3 {[%clk 0:00:06.8]} 71. Kd5
{[%clk 0:00:10]} 71... Ke3 {[%clk 0:00:06.7]} 72. Qg3+ {[%clk 0:00:09.1]} 72...
Kd2 {[%clk 0:00:05.6]} 73. Kd4 {[%clk 0:00:08.8]} 73... Kc2 {[%clk 0:00:05]} 74.
Qf2+ {[%clk 0:00:08]} 74... Kb1 {[%clk 0:00:04.9]} 75. Qd2 {[%clk 0:00:07.2]}
75... Ka1 {[%clk 0:00:04.8]} 76. Kc3 {[%clk 0:00:06.8]} 76... Kb1 {[%clk
0:00:04.1]} 77. Qb2# {[%clk 0:00:06.4]} 1-0

[Event "Live Chess"]
[Site "Chess.com"]
[Date "2024.06.01"]
[Round "-"]
[White "powerchs"]
[Black "EPotapov05"]
[Result "1-0"]
[WhiteElo "1262"]
[BlackElo "1833"]
[TimeControl "300"]
[EndTime "12:07:24 PDT"]
[Termination "powerchs won on time"]

1. e4 {[%clk 0:04:56.2]} 1... e6 {[%clk 0:04:56.9]} 2. Nf3 {[%clk 0:04:55]} 2...
d5 {[%clk 0:04:56]} 3. e5 {[%clk 0:04:51.8]} 3... c5 {[%clk 0:04:54]} 4. d4
{[%clk 0:04:48.1]} 4... cxd4 {[%clk 0:04:52.1]} 5. Qxd4 {[%clk 0:04:45.7]} 5...
Nc6 {[%clk 0:04:50.9]} 6. Bb5 {[%clk 0:04:43.4]} 6... Bd7 {[%clk 0:04:50.1]} 7.
Bxc6 {[%clk 0:04:40.8]} 7... bxc6 {[%clk 0:04:48.8]} 8. O-O {[%clk 0:04:38.7]}
8... c5 {[%clk 0:04:44.8]} 9. Qg4 {[%clk 0:04:35]} 9... g6 {[%clk 0:04:39.4]}
10. Bg5 {[%clk 0:04:29.4]} 10... Qc7 {[%clk 0:04:33.8]} 11. Nc3 {[%clk
0:04:22.6]} 11... Bg7 {[%clk 0:04:29.6]} 12. Rfe1 {[%clk 0:04:18.4]} 12... Nh6
{[%clk 0:04:27.1]} 13. Qg3 {[%clk 0:03:59.2]} 13... Nf5 {[%clk 0:04:22.7]} 14.
Qh3 {[%clk 0:03:57.4]} 14... O-O {[%clk 0:04:16.1]} 15. Bf6 {[%clk 0:03:54.6]}
15... Rfe8 {[%clk 0:04:02.4]} 16. Ng5 {[%clk 0:03:42.4]} 16... h6 {[%clk
0:03:51.2]} 17. Bxg7 {[%clk 0:03:32.2]} 17... Kxg7 {[%clk 0:03:43.1]} 18. Nf3
{[%clk 0:03:29.8]} 18... Qb6 {[%clk 0:03:33.2]} 19. b3 {[%clk 0:03:25.4]} 19...
Qb4 {[%clk 0:03:23.7]} 20. Ne2 {[%clk 0:03:20.2]} 20... a5 {[%clk 0:03:12.8]}
21. c3 {[%clk 0:03:17.8]} 21... Qb6 {[%clk 0:03:08.6]} 22. Nh4 {[%clk
0:02:58.4]} 22... Nxh4 {[%clk 0:03:00.6]} 23. Qxh4 {[%clk 0:02:56.4]} 23... Qd8
{[%clk 0:02:58.3]} 24. Qg3 {[%clk 0:02:54.4]} 24... Qb6 {[%clk 0:02:41.7]} 25.
h4 {[%clk 0:02:45.8]} 25... a4 {[%clk 0:02:34.7]} 26. h5 {[%clk 0:02:43.1]}
26... axb3 {[%clk 0:02:23.7]} 27. axb3 {[%clk 0:02:41.2]} 27... Qxb3 {[%clk
0:02:22.6]} 28. Rxa8 {[%clk 0:02:39.4]} 28... Rxa8 {[%clk 0:02:20.1]} 29. hxg6
{[%clk 0:02:38]} 29... fxg6 {[%clk 0:02:18.4]} 30. Nf4 {[%clk 0:02:36.4]} 30...
g5 {[%clk 0:01:51.9]} 31. Nh5+ {[%clk 0:02:31.4]} 31... Kg6 {[%clk 0:01:47.8]}
32. Nf6 {[%clk 0:02:29.7]} 32... Qb7 {[%clk 0:01:23.3]} 33. Qh3 {[%clk 0:02:25]}
33... c4 {[%clk 0:01:06.1]} 34. Qh5+ {[%clk 0:02:22.2]} 34... Kg7 {[%clk
0:01:04.1]} 35. Re3 {[%clk 0:02:13.5]} 35... Bc6 {[%clk 0:00:58.5]} 36. Rh3
{[%clk 0:02:11.1]} 36... Rh8 {[%clk 0:00:56.6]} 37. f4 {[%clk 0:02:00.8]} 37...
Qf7 {[%clk 0:00:53]} 38. Qg4 {[%clk 0:01:52.6]} 38... Qg6 {[%clk 0:00:50.9]} 39.
Qxe6 {[%clk 0:01:40.9]} 39... Ba8 {[%clk 0:00:42.2]} 40. f5 {[%clk 0:01:32.4]}
40... Qf7 {[%clk 0:00:39.7]} 41. Nh5+ {[%clk 0:01:30.5]} 41... Kf8 {[%clk
0:00:33.9]} 42. Qd6+ {[%clk 0:01:28.5]} 42... Qe7 {[%clk 0:00:32.5]} 43. Qf6+
{[%clk 0:01:00.8]} 43... Qxf6 {[%clk 0:00:30.4]} 44. Nxf6 {[%clk 0:00:59.9]}
44... Kf7 {[%clk 0:00:29]} 45. Nd7 {[%clk 0:00:55.1]} 45... Kg7 {[%clk
0:00:27.5]} 46. Nc5 {[%clk 0:00:53.1]} 46... Rb8 {[%clk 0:00:25.9]} 47. Ne6+
{[%clk 0:00:51.8]} 47... Kh7 {[%clk 0:00:24.2]} 48. f6 {[%clk 0:00:45.8]} 48...
Re8 {[%clk 0:00:19.2]} 49. Nxg5+ {[%clk 0:00:42.7]} 49... Kg6 {[%clk 0:00:17.5]}
50. f7 {[%clk 0:00:35.6]} 50... Rf8 {[%clk 0:00:13.8]} 51. Rg3 {[%clk
0:00:31.9]} 51... Rxf7 {[%clk 0:00:12.2]} 52. Nxf7+ {[%clk 0:00:29.4]} 1-0

[Event "Live Chess"]
[Site "Chess.com"]
[Date "2024.06.01"]
[Round "-"]
[White "Nathaniel250"]
[Black "matt1979"]
[Result "1-0"]
[WhiteElo "1480"]
[BlackElo "1368"]
[TimeControl "300"]
[EndTime "12:07:33 PDT"]
[Termination "Nathaniel250 won on time"]

1. c4 {[%clk 0:04:59]} 1... f5 {[%clk 0:04:56.8]} 2. g3 {[%clk 0:04:49.5]} 2...
Nf6 {[%clk 0:04:55.3]} 3. Bg2 {[%clk 0:04:48.3]} 3... d6 {[%clk 0:04:52.5]} 4.
Nc3 {[%clk 0:04:47.4]} 4... e5 {[%clk 0:04:51]} 5. d3 {[%clk 0:04:44.9]} 5...
Be7 {[%clk 0:04:49.5]} 6. e4 {[%clk 0:04:43.2]} 6... fxe4 {[%clk 0:04:46.5]} 7.
dxe4 {[%clk 0:04:42.3]} 7... O-O {[%clk 0:04:44.6]} 8. Nge2 {[%clk 0:04:39.3]}
8... Nc6 {[%clk 0:04:37.9]} 9. Be3 {[%clk 0:04:35.4]} 9... Be6 {[%clk
0:04:27.6]} 10. b3 {[%clk 0:04:32.8]} 10... Qd7 {[%clk 0:04:22.7]} 11. f4 {[%clk
0:04:27.7]} 11... Bh3 {[%clk 0:04:15.8]} 12. O-O {[%clk 0:04:24.6]} 12... Bxg2
{[%clk 0:04:14.5]} 13. Kxg2 {[%clk 0:04:24]} 13... Ng4 {[%clk 0:04:05.8]} 14.
Qd2 {[%clk 0:04:14.7]} 14... Nxe3+ {[%clk 0:03:57.6]} 15. Qxe3 {[%clk
0:04:14.6]} 15... Rf6 {[%clk 0:03:46.4]} 16. f5 {[%clk 0:04:13.4]} 16... Rh6
{[%clk 0:03:42]} 17. Nd5 {[%clk 0:04:08.4]} 17... Qd8 {[%clk 0:03:29.7]} 18.
Nxe7+ {[%clk 0:04:04.2]} 18... Qxe7 {[%clk 0:03:26.6]} 19. Nc3 {[%clk
0:03:52.5]} 19... Qf7 {[%clk 0:03:18.2]} 20. g4 {[%clk 0:03:39.9]} 20... Ne7
{[%clk 0:03:06.1]} 21. Qe2 {[%clk 0:03:16.9]} 21... c6 {[%clk 0:03:02.7]} 22.
Kg3 {[%clk 0:03:08.6]} 22... Qf6 {[%clk 0:02:57.2]} 23. Kf3 {[%clk 0:02:53]}
23... Rh3+ {[%clk 0:02:49.2]} 24. Kg2 {[%clk 0:02:47.1]} 24... Rxc3 {[%clk
0:02:43.2]} 25. Qd2 {[%clk 0:02:40.7]} 25... Nd5 {[%clk 0:02:02.6]} 26. cxd5
{[%clk 0:02:22.1]} 26... Rc5 {[%clk 0:01:56.9]} 27. Rac1 {[%clk 0:01:59.7]}
27... cxd5 {[%clk 0:01:47.2]} 28. Rxc5 {[%clk 0:01:54.4]} 28... dxc5 {[%clk
0:01:45]} 29. Qxd5+ {[%clk 0:01:53.3]} 29... Kh8 {[%clk 0:01:32.4]} 30. Qxc5
{[%clk 0:01:42.5]} 30... Rd8 {[%clk 0:01:28.8]} 31. Qc2 {[%clk 0:01:30.1]} 31...
Qg5 {[%clk 0:01:23.4]} 32. Qc1 {[%clk 0:00:59.1]} 32... Qxg4+ {[%clk 0:01:18]}
33. Kh1 {[%clk 0:00:55.9]} 33... Qxe4+ {[%clk 0:01:15.6]} 34. Kg1 {[%clk
0:00:54.4]} 34... Qg4+ {[%clk 0:00:51.6]} 35. Kh1 {[%clk 0:00:51.7]} 35... Qe4+
{[%clk 0:00:41.1]} 36. Kg1 {[%clk 0:00:45]} 36... Qg4+ {[%clk 0:00:31.1]} 37.
Kf2 {[%clk 0:00:33.9]} 37... Qd4+ {[%clk 0:00:21.4]} 38. Qe3 {[%clk 0:00:25.8]}
38... Qb2+ {[%clk 0:00:18.7]} 39. Kg1 {[%clk 0:00:19.6]} 39... Rd2 {[%clk
0:00:13.5]} 40. Rf2 {[%clk 0:00:18.9]} 40... Qc1+ {[%clk 0:00:09.8]} 41. Kg2
{[%clk 0:00:11.3]} 41... Rxf2+ {[%clk 0:00:06.8]} 42. Qxf2 {[%clk 0:00:11.2]}
42... Qg5+ {[%clk 0:00:05.4]} 43. Qg3 {[%clk 0:00:10.2]} 43... Qxg3+ {[%clk
0:00:03.8]} 44. Kxg3 {[%clk 0:00:09.3]} 44... e4 {[%clk 0:00:03.4]} 45. Kf4
{[%clk 0:00:08.6]} 45... Kg8 {[%clk 0:00:03.3]} 46. Kxe4 {[%clk 0:00:08]} 46...
Kf8 {[%clk 0:00:03.2]} 47. Ke5 {[%clk 0:00:07.4]} 47... Ke8 {[%clk 0:00:03.1]}
48. Ke6 {[%clk 0:00:05.6]} 48... Kd8 {[%clk 0:00:02]} 49. f6 {[%clk 0:00:05.1]}
49... Kc7 {[%clk 0:00:01.9]} 50. fxg7 {[%clk 0:00:04.2]} 50... Kb6 {[%clk
0:00:00.6]} 51. g8=Q {[%clk 0:00:04.1]} 1-0

[Event "Live Chess"]
[Site "Chess.com"]
[Date "2024.06.01"]
[Round "-"]
[White "degringolade64"]
[Black "elephantgerrald"]
[Result "1-0"]
[WhiteElo "2061"]
[BlackElo "786"]
[TimeControl "300"]
[EndTime "12:07:35 PDT"]
[Termination "degringolade64 won by checkmate"]

1. e4 {[%clk 0:04:57]} 1... e5 {[%clk 0:04:58.8]} 2. Nf3 {[%clk 0:04:55.6]} 2...
Nc6 {[%clk 0:04:56.4]} 3. Bb5 {[%clk 0:04:53.5]} 3... Nf6 {[%clk 0:04:54.2]} 4.
O-O {[%clk 0:04:45.4]} 4... Bd6 {[%clk 0:04:46.3]} 5. Bxc6 {[%clk 0:04:31.2]}
5... dxc6 {[%clk 0:04:42.1]} 6. d4 {[%clk 0:04:30.9]} 6... Bg4 {[%clk
0:04:40.2]} 7. dxe5 {[%clk 0:04:28.6]} 7... Bxf3 {[%clk 0:04:30]} 8. Qxf3 {[%clk
0:04:25.7]} 8... Bxe5 {[%clk 0:04:28.5]} 9. Nc3 {[%clk 0:04:22.2]} 9... O-O
{[%clk 0:04:26.3]} 10. Bg5 {[%clk 0:04:17.8]} 10... Bxc3 {[%clk 0:04:20.4]} 11.
bxc3 {[%clk 0:04:16.2]} 11... Re8 {[%clk 0:03:35.6]} 12. Rad1 {[%clk 0:04:06.9]}
12... Qc8 {[%clk 0:03:26.6]} 13. Bxf6 {[%clk 0:04:02.5]} 13... gxf6 {[%clk
0:03:15.6]} 14. Qxf6 {[%clk 0:04:01.5]} 14... Qg4 {[%clk 0:03:09.5]} 15. Rd3
{[%clk 0:03:56.5]} 15... Qxe4 {[%clk 0:03:05.5]} 16. Rg3+ {[%clk 0:03:46.4]}
16... Qg6 {[%clk 0:03:01.6]} 17. Rxg6+ {[%clk 0:03:43.5]} 17... hxg6 {[%clk
0:02:57.8]} 18. h4 {[%clk 0:03:43.1]} 18... Re6 {[%clk 0:02:52.5]} 19. Qf4
{[%clk 0:03:39.9]} 19... Rd8 {[%clk 0:02:48.7]} 20. Qxc7 {[%clk 0:03:37.1]}
20... Kg7 {[%clk 0:02:36.6]} 21. Qxd8 {[%clk 0:03:35.1]} 21... Rf6 {[%clk
0:02:33.3]} 22. Qd4 {[%clk 0:03:33.4]} 22... Kh6 {[%clk 0:02:29.3]} 23. Qxf6
{[%clk 0:03:31.6]} 23... Kh7 {[%clk 0:02:25.1]} 24. Qxf7+ {[%clk 0:03:28.9]}
24... Kh6 {[%clk 0:01:59.4]} 25. Qf4+ {[%clk 0:03:26.8]} 25... Kh5 {[%clk
0:01:45.2]} 26. Qg5# {[%clk 0:03:24.7]} 1-0

[Event "Live Chess"]
[Site "Chess.com"]
[Date "2024.06.01"]
[Round "-"]
[White "KeithArkell"]
[Black "nitrofish07"]
[Result "0-1"]
[WhiteElo "2487"]
[BlackElo "2141"]
[TimeControl "300"]
[EndTime "12:07:48 PDT"]
[Termination "nitrofish07 won by resignation"]

1. d4 {[%clk 0:04:57.5]} 1... d5 {[%clk 0:04:59.2]} 2. Nf3 {[%clk 0:04:56.9]}
2... Nf6 {[%clk 0:04:58.4]} 3. c4 {[%clk 0:04:56.8]} 3... c6 {[%clk 0:04:57.8]}
4. Nc3 {[%clk 0:04:55.8]} 4... dxc4 {[%clk 0:04:57.3]} 5. a4 {[%clk 0:04:54.6]}
5... Bf5 {[%clk 0:04:56.6]} 6. Nh4 {[%clk 0:04:53.8]} 6... Bg6 {[%clk
0:04:54.6]} 7. Nxg6 {[%clk 0:04:53]} 7... hxg6 {[%clk 0:04:54.5]} 8. a5 {[%clk
0:04:51.9]} 8... e6 {[%clk 0:04:21.7]} 9. e3 {[%clk 0:04:49.5]} 9... Bb4 {[%clk
0:04:20.8]} 10. Qa4 {[%clk 0:04:48.6]} 10... Na6 {[%clk 0:03:59.7]} 11. Bxc4
{[%clk 0:04:42.5]} 11... Ne4 {[%clk 0:03:35.5]} 12. Bxa6 {[%clk 0:04:38.9]}
12... Qh4 {[%clk 0:02:34.1]} 13. g3 {[%clk 0:04:10.3]} 13... Bxc3+ {[%clk
0:02:14.1]} 14. bxc3 {[%clk 0:04:08.5]} 14... Qf6 {[%clk 0:02:13.8]} 15. Qc2
{[%clk 0:04:05.1]} 15... Qf3 {[%clk 0:01:58.2]} 16. Rf1 {[%clk 0:03:26]} 16...
bxa6 {[%clk 0:01:57.3]} 17. Ba3 {[%clk 0:03:20.2]} 17... Rxh2 {[%clk 0:01:52]}
18. Qa4 {[%clk 0:02:33.4]} 18... Nxf2 {[%clk 0:01:39.9]} 19. Qc2 {[%clk
0:02:16.9]} 19... Qxe3+ {[%clk 0:01:30.2]} 0-1

[Event "Live Chess"]
[Site "Chess.com"]
[Date "2024.06.01"]
[Round "-"]
[White "JanMur7"]
[Black "imchessive"]
[Result "1-0"]
[WhiteElo "2288"]
[BlackElo "1577"]
[TimeControl "300"]
[EndTime "12:07:59 PDT"]
[Termination "JanMur7 won by resignation"]

1. c4 {[%clk 0:04:57.9]} 1... f5 {[%clk 0:04:57.9]} 2. d4 {[%clk 0:04:55.2]}
2... d6 {[%clk 0:04:56.4]} 3. Nc3 {[%clk 0:04:54.7]} 3... Nf6 {[%clk 0:04:55]}
4. g3 {[%clk 0:04:54.3]} 4... Nbd7 {[%clk 0:04:53.9]} 5. Bg2 {[%clk 0:04:54.2]}
5... g6 {[%clk 0:04:52.1]} 6. Nh3 {[%clk 0:04:52.8]} 6... Bg7 {[%clk 0:04:50.5]}
7. Ng5 {[%clk 0:04:52.2]} 7... Nb6 {[%clk 0:04:34.7]} 8. e4 {[%clk 0:04:34.4]}
8... fxe4 {[%clk 0:04:32]} 9. Ngxe4 {[%clk 0:04:32.3]} 9... O-O {[%clk
0:04:27.7]} 10. Nxf6+ {[%clk 0:04:27.4]} 10... Bxf6 {[%clk 0:04:23.3]} 11. O-O
{[%clk 0:04:26.2]} 11... Nxc4 {[%clk 0:04:15.2]} 12. Bd5+ {[%clk 0:04:24.2]}
12... e6 {[%clk 0:03:59.6]} 13. Bxc4 {[%clk 0:04:22]} 13... a6 {[%clk 0:03:42]}
14. Qb3 {[%clk 0:04:13.9]} 14... Qe7 {[%clk 0:03:28.3]} 15. Re1 {[%clk
0:04:10.8]} 15... Re8 {[%clk 0:03:18.9]} 16. Nd5 {[%clk 0:04:07.3]} 16... Qf7
{[%clk 0:02:58]} 17. Nxf6+ {[%clk 0:04:03.9]} 17... Qxf6 {[%clk 0:02:57.1]} 18.
Bf4 {[%clk 0:03:58.1]} 18... b5 {[%clk 0:02:40.8]} 19. Bd5 {[%clk 0:03:45.7]}
19... Rb8 {[%clk 0:02:26.6]} 20. Bc6 {[%clk 0:03:43.9]} 20... Re7 {[%clk
0:02:22]} 21. Qe3 {[%clk 0:03:41.9]} 21... Bb7 {[%clk 0:02:04.7]} 22. Bxb7
{[%clk 0:03:38.7]} 22... Rxb7 {[%clk 0:02:04.6]} 23. Bg5 {[%clk 0:03:37.8]}
23... Qf7 {[%clk 0:01:55.9]} 24. Bxe7 {[%clk 0:03:36.1]} 24... Qxe7 {[%clk
0:01:55.8]} 25. Qxe6+ {[%clk 0:03:35.4]} 25... Qxe6 {[%clk 0:01:55.1]} 26. Rxe6
{[%clk 0:03:35.3]} 26... c5 {[%clk 0:01:53.6]} 27. Rxd6 {[%clk 0:03:32]} 27...
c4 {[%clk 0:01:51.3]} 28. Rxa6 {[%clk 0:03:30.6]} 28... b4 {[%clk 0:01:49.1]}
29. Rc6 {[%clk 0:03:28.7]} 29... Rd7 {[%clk 0:01:46]} 30. Rxc4 {[%clk
0:03:27.7]} 1-0

[Event "Live Chess"]
[Site "Chess.com"]
[Date "2024.06.01"]
[Round "-"]
[White "Cruiseylee78"]
[Black "A3ndrey9"]
[Result "1-0"]
[WhiteElo "1707"]
[BlackElo "1270"]
[TimeControl "300"]
[EndTime "12:08:01 PDT"]
[Termination "Cruiseylee78 won by checkmate"]

1. e4 {[%clk 0:04:56.9]} 1... c6 {[%clk 0:04:59.9]} 2. b3 {[%clk 0:04:53.9]}
2... d5 {[%clk 0:04:59.8]} 3. Bb2 {[%clk 0:04:53]} 3... dxe4 {[%clk 0:04:58.6]}
4. g4 {[%clk 0:04:47.6]} 4... Nf6 {[%clk 0:04:53]} 5. Nc3 {[%clk 0:04:46.5]}
5... Bxg4 {[%clk 0:04:50.1]} 6. Be2 {[%clk 0:04:41.7]} 6... Bxe2 {[%clk
0:04:46.9]} 7. Ngxe2 {[%clk 0:04:41.6]} 7... e6 {[%clk 0:04:46]} 8. Ng3 {[%clk
0:04:38.3]} 8... Bb4 {[%clk 0:04:42.5]} 9. a3 {[%clk 0:04:36.4]} 9... Bxc3
{[%clk 0:04:41.2]} 10. Bxc3 {[%clk 0:04:36.3]} 10... O-O {[%clk 0:04:38.5]} 11.
Qe2 {[%clk 0:04:35.7]} 11... Nbd7 {[%clk 0:04:35]} 12. O-O-O {[%clk 0:04:34.6]}
12... a5 {[%clk 0:04:30.4]} 13. Nxe4 {[%clk 0:03:39.8]} 13... Nxe4 {[%clk
0:04:25]} 14. Qxe4 {[%clk 0:03:39.7]} 14... Nf6 {[%clk 0:04:23.6]} 15. Qe5
{[%clk 0:03:36.1]} 15... Qd5 {[%clk 0:04:14.2]} 16. Qxf6 {[%clk 0:03:20.1]}
16... gxf6 {[%clk 0:04:02.2]} 17. Rdg1+ {[%clk 0:03:15.9]} 17... Qg5 {[%clk
0:03:52.9]} 18. h4 {[%clk 0:03:11.1]} 18... Qg7 {[%clk 0:03:41]} 19. Bxf6 {[%clk
0:03:06.4]} 19... Qg6 {[%clk 0:03:37.5]} 20. h5 {[%clk 0:03:03.5]} 20... h6
{[%clk 0:03:11.1]} 21. hxg6 {[%clk 0:02:53.8]} 21... fxg6 {[%clk 0:03:09.2]} 22.
Rxg6+ {[%clk 0:02:50.3]} 22... Kf7 {[%clk 0:03:05.4]} 23. Rgxh6 {[%clk
0:02:45.5]} 23... Rg8 {[%clk 0:02:57.8]} 24. Be5 {[%clk 0:02:42.2]} 24... Ke7
{[%clk 0:02:55.9]} 25. Rh7+ {[%clk 0:02:38]} 25... Ke8 {[%clk 0:02:54.2]} 26.
Rxb7 {[%clk 0:02:29.5]} 26... Rd8 {[%clk 0:02:45.6]} 27. Rhh7 {[%clk 0:02:25.6]}
27... Rg1+ {[%clk 0:02:42.4]} 28. Kb2 {[%clk 0:02:15.8]} 28... Rg5 {[%clk
0:02:34.4]} 29. Rh8+ {[%clk 0:02:08]} 29... Rg8 {[%clk 0:02:31.3]} 30. Rxg8#
{[%clk 0:02:07.5]} 1-0

[Event "Live Chess"]
[Site "Chess.com"]
[Date "2024.06.01"]
[Round "-"]
[White "Eva3337"]
[Black "OurKnightAtTheOpera"]
[Result "1-0"]
[WhiteElo "1159"]
[BlackElo "2001"]
[TimeControl "300"]
[EndTime "12:08:13 PDT"]
[Termination "Eva3337 won by resignation"]

1. e4 {[%clk 0:04:55.5]} 1... e5 {[%clk 0:04:58.5]} 2. Nf3 {[%clk 0:04:54.1]}
2... Nc6 {[%clk 0:04:57.2]} 3. c3 {[%clk 0:04:53.1]} 3... Nf6 {[%clk 0:04:55.6]}
4. Bd3 {[%clk 0:04:51.7]} 4... Bc5 {[%clk 0:04:50.6]} 5. O-O {[%clk 0:04:49]}
5... O-O {[%clk 0:04:47.2]} 6. Bc2 {[%clk 0:04:47.8]} 6... d5 {[%clk 0:04:41.2]}
7. d4 {[%clk 0:04:44.1]} 7... Bd6 {[%clk 0:04:13.2]} 8. exd5 {[%clk 0:04:32.4]}
8... Ne7 {[%clk 0:03:57.3]} 9. dxe5 {[%clk 0:04:23]} 9... Bd7 {[%clk 0:03:27.4]}
10. exf6 {[%clk 0:04:14.7]} 10... Ng6 {[%clk 0:03:22.4]} 11. fxg7 {[%clk
0:04:03.6]} 11... Kxg7 {[%clk 0:03:19]} 12. Qd4+ {[%clk 0:03:51.7]} 12... Kg8
{[%clk 0:03:15.8]} 13. b3 {[%clk 0:03:49.3]} 13... h5 {[%clk 0:03:00.4]} 14. Bh6
{[%clk 0:03:46.5]} 1-0